[Event "ESP-chT Honor Division 2022"]
[Site "Linares"]
[Date "2022.09.23"]
[Round "7.18"]
[White "Tejedor Fuente, Enrique"]
[Black "Garrido Outon, Alex"]
[Result "1/2-1/2"]
[ECO "B94"]
[WhiteElo "2384"]
[BlackElo "2411"]
[Annotator "TA"]
[PlyCount "156"]
[EventDate "2022.09.17"]
[EventType "team-tourn"]
[EventCountry "ESP"]
[SourceTitle "playchess.com"]
[Source "ChessBase"]
[SourceQuality "1"]
[TimeControl "5400+30"]

{[%evp 11,156,6,20,8,38,30,41,15,15,23,22,16,13,21,15,24,26,12,78,45,64,33,118,111,123,119,158,95,74,66,70,0,0,0,0,0,0,0,45,50,49,8,8,8,14,12,17,21,25,35,41,0,7,0,8,0,17,0,0,0,0,0,0,0,0,0,0,0,0,0,0,0,0,0,0,0,0,-28,-33,-52,-95,-104,-64,-608,-594,-540,-561,-440,0,-277,-231,-218,-27,-31,-38,-824,-661,-564,-550,-1160,-1124,-1053,-1043,-910,-881,-12796,-12744,-12750,-12763,-12696,-12696,-12279,-12279,-10784,0,-622,0,-6129,-5931,-5338,-5338,-5494,-5324,-4652,-214,-214,-214,-214,0,0,0,0,0,0,0,0,0,0,0,0,0,0,0,0,0,0,0]} 1. e4 {[%emt 0:00:02]} c5 {[%emt 0:00:15]} 2. Nf3 {[%emt 0:00:01]} d6 {[%emt 0:00:09]} 3. d4 {[%emt 0:00:01]} cxd4 {[%emt 0:00:23]} 4. Nxd4 {[%emt 0:00:01]} Nf6 {[%emt 0:00:10]} 5. Nc3 {[%emt 0:00:02]} a6 {[%emt 0:00:08]} 6. Bg5 {[%emt 0:00:07]} Nbd7 {[%emt 0:00:15]} 7. Qe2 {[%emt 0:00:10] B94: Sicilian Najdorf: 6 Bg5 Nbd7.} h6 {[%emt 0:00:30]} 8. Bh4 {[%emt 0:00:03]} g6 {[%emt 0:00:35]} 9. f4 {[%emt 0:00:06] next e5 is good for White. White is slightly better.} e5 {[%emt 0:00:34]} 10. fxe5 {[%emt 0:00:13]} dxe5 {[%emt 0:00:07]} 11. O-O-O {[%emt 0:00:09]} Qc7 {[%emt 0:01:44]} (11... exd4 12. e5 Bc5 13. exf6+ Kf8 14. Ne4 $18) 12. Nb3 {[%emt 0:00:01]} b5 {[%emt 0:00:35]} 13. g4 {[%emt 0:00:22] 13.Rxd7 is a critical line.} Bb7 {[%emt 0:10:09]} 14. Bg2 {[%emt 0:00:05]} Rc8 {[%emt 0:09:30]} (14... Be7 $1 $11 {keeps the balance.}) 15. Rhf1 $36 {[%emt 0:06:02][%mdl 2048] White fights for an advantage.} Be7 {[%emt 0:08:05]} 16. a3 {[%emt 0:11:04] [#] White is more active.} Qc4 $146 {[%emt 0:26:23] [#]} (16... Qb6 $14) ({Predecessor:} 16... g5 17. Bg3 Bxa3 18. bxa3 Qxc3 19. Rd3 Qc7 20. Nd4 O-O 21. Nf5 Qc4 22. Nd6 Qa2 23. Nxb7 {½-½ (40) Kotronias,V (2578)-Papaioannou,I (2624) Vrachati 2013}) 17. Rd3 $1 $16 {[%emt 0:06:28]} Ba8 {[%emt 0:06:35] [#]} 18. Kb1 $1 {[%emt 0:10:38]} Qe6 {[%emt 0:08:34]} 19. Nd5 {[%emt 0:07:13]} (19. h3 $142) 19... Bxd5 {[%emt 0:06:55]} 20. exd5 {[%emt 0:00:18]} Qxg4 {[%emt 0:00:52]} 21. Qxg4 {[%emt 0:14:19]} (21. Qf2 $1 $14 g5 22. Bg3) 21... Nxg4 $11 {[%emt 0:00:06]} 22. Bxe7 {[%emt 0:00:14]} Kxe7 {[%emt 0:00:04]} 23. d6+ {[%emt 0:00:03]} Kf8 {[%emt 0:08:03]} 24. Bb7 {[%emt 0:02:02][%csl LRa6,LRc8]} Rd8 {[%emt 0:00:01]} 25. h3 {[%emt 0:03:22]} Ngf6 {[%emt 0:00:02]} 26. Bxa6 {[%emt 0:00:48]} Rb8 {[%emt 0:00:08]} 27. Rfd1 {[%emt 0:12:10]} Kg7 {[%emt 0:01:48] White must now prevent ...Rb6.} (27... Rb6 $5 28. Bc8 $8 Kg7 $11) 28. Rc3 $1 {[%emt 0:00:36]} Rb6 {[%emt 0:02:39]} 29. Bc8 {[%emt 0:00:04]} Rd8 {[%emt 0:00:21]} 30. Rc7 {[%emt 0:01:26]} e4 {[%emt 0:02:28][%cal Be5e4,Be4e3][%mdl 32]} 31. Na5 {[%emt 0:02:50]} (31. Nd4 $5 {[%cal Rd4c6]}) 31... e3 {[%emt 0:02:27][%cal Ob6d6] Hoping for ...Rxd6!} 32. Nc6 {[%emt 0:04:27]} Re8 {[%emt 0:00:01]} 33. Re1 {[%emt 0:02:17]} Re6 {[%emt 0:01:31]} 34. Bxd7 {[%emt 0:02:44]} Nxd7 {[%emt 0:00:03]} 35. Nd8 {[%emt 0:00:25]} Rexd6 {[%emt 0:00:53]} 36. Rxe3 {[%emt 0:00:00]} Ne5 {[%emt 0:01:29]} 37. Rxe5 {[%emt 0:06:28]} Rxd8 {[%emt 0:00:01][%mdl 4096] Endgame KRR-KRR} 38. Ree7 {[%emt 0:03:14]} Rf8 {[%emt 0:00:01]} 39. b4 {[%emt 0:02:42]} g5 {[%emt 0:00:01]} 40. c4 {[%emt 0:00:54]} bxc4 {[%emt 0:00:58]} 41. Rxc4 {[%emt 0:00:01]} Kg6 {[%emt 0:00:45]} 42. a4 {[%emt 0:00:21]} f5 {[%emt 0:01:57][%cal Bf7f5,Bf5f4,Bf4f3,Bf3f2][%mdl 32]} 43. a5 {[%emt 0:00:14]} Ra6 {[%emt 0:00:01]} 44. Kb2 {[%emt 0:00:25]} f4 {[%emt 0:00:15]} 45. Kb3 {[%emt 0:02:39]} f3 {[%emt 0:01:15]} 46. Re1 {[%emt 0:00:01]} h5 {[%emt 0:01:00] aiming for ...f2.} ({But not} 46... f2 $6 47. Rf1 $11) 47. Ka4 $2 {[%emt 0:00:08][%mdl 8192]} (47. Rf1 $15) 47... f2 $19 {[%emt 0:01:37]} 48. Rf1 {[%emt 0:00:29]} Raf6 {[%emt 0:00:18]} 49. Re4 {[%emt 0:05:27]} Kf5 $2 {[%emt 0:00:31]} (49... Rf4 $19 50. Re3 (50. Rxf4 $2 Rxf4 51. a6 g4 $19) 50... g4) 50. Rc4 {[%emt 0:00:40][%mdl 8192]} (50. Re7 $11 {and White is okay.} Kg6 51. Re4) 50... Ke5 {[%emt 0:01:42]} 51. Rc5+ {[%emt 0:00:09]} Kd4 $2 {[%emt 0:00:17]} (51... Ke4 $19 {And now ...Rg6 would win.} 52. Rxg5 Kf3) 52. Rxg5 $11 {[%emt 0:00:15]} Re8 {[%emt 0:00:45] Strongly threatening ...Re1.} 53. Rxh5 $2 {[%emt 0:00:19][%mdl 8192]} (53. Rg2 $15 Re2 54. Kb5) 53... Re1 $19 {[%emt 0:00:11]} 54. Rxf2 {[%emt 0:00:07]} Rxf2 {[%emt 0:00:09]} 55. a6 {[%emt 0:00:12]} Ra2+ {[%emt 0:00:33]} 56. Kb5 {[%emt 0:00:01]} Re6 {[%emt 0:00:06]} 57. Rh4+ {[%emt 0:00:29]} Kd3 {[%emt 0:00:02]} 58. Kc5 {[%emt 0:02:50]} Raxa6 {[%emt 0:00:01][%cal Re6e5]} 59. Rd4+ {[%emt 0:00:17]} Kc3 {[%emt 0:00:54]} 60. b5 {[%emt 0:00:13] Inhibits Rac6+.} Ra8 {[%emt 0:00:51] ( -> ...Re5+)} 61. Rc4+ {[%emt 0:00:11]} Kb3 {[%emt 0:00:24]} 62. Rb4+ {[%emt 0:00:22]} Kc3 {[%emt 0:00:04]} 63. Rc4+ {[%emt 0:00:05]} Kb3 {[%emt 0:00:03]} 64. Rb4+ $1 {[%emt 0:00:00]} Ka3 {[%emt 0:00:06]} 65. Rb1 {[%emt 0:01:28]} Rc8+ {[%emt 0:00:48]} 66. Kd5 {[%emt 0:00:02]} Rh6 {[%emt 0:00:49]} 67. b6 {[%emt 0:00:32]} Rxh3 $2 {[%emt 0:00:49]} (67... Ka2 68. Rb4 Ra8) 68. b7 {[%emt 0:00:21]} Rd8+ {[%emt 0:02:12]} 69. Kc5 {[%emt 0:01:30]} Rc3+ $2 {[%emt 0:00:16]} (69... Rhh8 $19 {...Ka2 is the strong threat.} 70. Kb6 Ka4) 70. Kb6 $11 {[%emt 0:00:07] The position is equal.} Ka2 {[%emt 0:00:44]} 71. Rb5 {[%emt 0:00:13]} Rd6+ {[%emt 0:00:16]} 72. Ka5 {[%emt 0:01:32]} Ra3+ {[%emt 0:00:06]} 73. Kb4 {[%emt 0:00:01]} Rc6 {[%emt 0:01:02]} 74. b8=Q {[%emt 0:01:00]} Rb3+ {[%emt 0:00:05]} 75. Ka5 {[%emt 0:00:04]} Ra3+ {[%emt 0:00:02]} 76. Kb4 {[%emt 0:00:04] White threatens Qh2+ and mate.} Rb3+ {[%emt 0:00:03]} 77. Ka5 {[%emt 0:00:02]} Ra3+ {[%emt 0:00:05]} 78. Kb4 {[%emt 0:00:02] Threatening mate with Qh2+.} Rb3+ {[%emt 0:00:05] Whites escaped into a draw.  Weighted Error Value: White=0.50/Black=0.23 (precise)} 1/2-1/2

[Event "ESP-chT Honor Division 2022"]
[Site "Linares"]
[Date "2022.09.23"]
[Round "7.19"]
[White "Gines Esteo, Pedro Antonio"]
[Black "Eljanov, Pavel"]
[Result "0-1"]
[ECO "D35"]
[WhiteElo "2505"]
[BlackElo "2695"]
[Annotator "TA"]
[PlyCount "114"]
[EventDate "2022.09.17"]
[EventType "team-tourn"]
[EventCountry "ESP"]
[SourceTitle "playchess.com"]
[Source "ChessBase"]
[SourceQuality "1"]
[TimeControl "5400+30"]

{[%evp 17,114,22,27,29,33,18,45,57,43,42,47,46,68,62,47,19,49,39,49,-49,-59,-34,0,0,0,0,91,95,92,84,74,81,191,181,212,201,179,168,179,188,197,201,168,100,103,86,104,86,137,34,35,34,45,40,39,39,39,37,104,36,38,0,0,0,40,0,0,0,42,-412,-404,-404,-363,-524,-16,-27,-35,-1330,-1301,-980,-882,-5720,-5193,-2434,-1780,-29972,-29968,-29977,-29978,-29983,-29984,-29984,-29985,-29986,-29987,-29986,-29984,-29984,-29985]} 1. d4 {[%emt 0:00:06]} d5 {[%emt 0:00:15]} 2. c4 {[%emt 0:00:12]} e6 {[%emt 0:00:14]} 3. Nc3 {[%emt 0:00:06]} Nf6 {[%emt 0:00:17]} 4. cxd5 {[%emt 0:00:08]} exd5 {[%emt 0:00:04]} 5. Bg5 {[%emt 0:00:07]} c6 {[%emt 0:00:16]} 6. e3 {[%emt 0:00:05]} h6 {[%emt 0:00:11]} 7. Bh4 {[%emt 0:00:07]} Be7 {[%emt 0:00:06]} 8. Bd3 {[%emt 0:04:23]} Nbd7 {[%emt 0:00:11]} 9. Qc2 {[%emt 0:00:27]} Nh5 {[%emt 0:00:18]} 10. Bxe7 {[%emt 0:00:34] D36: Queen's Gambit Declined: Exchange Variation: Main line (5 Bg5 c6 6 Qc2).} Qxe7 {[%emt 0:00:06]} 11. Nge2 {[%emt 0:00:16]} O-O {[%emt 0:00:24]} 12. g4 {[%emt 0:06:51] White is slightly better.} Nhf6 {[%emt 0:00:12]} 13. Rg1 {[%emt 0:00:08]} Re8 $1 {[%emt 0:10:00]} 14. O-O-O {[%emt 0:15:31]} Ne4 {[%emt 0:11:20]} 15. Bxe4 {[%emt 0:00:40]} dxe4 {[%emt 0:00:01]} 16. h4 {[%emt 0:00:14]} Qxh4 {[%emt 0:07:18]} 17. Nxe4 {[%emt 0:00:42]} Qe7 {[%emt 0:01:07] [#]} 18. N4c3 $146 {[%emt 0:16:17]} (18. N2c3 $1 $14) ({Predecessor:} 18. f3 Nf6 19. N2c3 Nd5 20. Rde1 f6 21. Kb1 Be6 22. Qh2 Rad8 23. Ka1 Bf7 24. Nxd5 Rxd5 {1-0 (40) Gladyszev,O (2352)-Oei,H (2203) Lisbon 2001}) 18... Nf6 $15 {[%emt 0:07:44]} 19. Rg3 {[%emt 0:03:45]} Bxg4 {[%emt 0:12:06]} (19... b5 $5 {[%cal Rb5b4]} 20. Kb1 (20. g5 hxg5 21. Rh1 b4 $17) 20... b4 $15) 20. Rdg1 $1 {[%emt 0:01:35] Black must now prevent e4.} h5 {[%emt 0:00:05]} 21. Kb1 {[%emt 0:15:35]} Nd5 {[%emt 0:11:20]} (21... g6 $11) 22. Nxd5 $1 $16 {[%emt 0:16:11]} cxd5 {[%emt 0:00:06] [#]} 23. f3 $1 $36 {[%emt 0:02:49][%mdl 2048] White is really pushing.} Qxe3 {[%emt 0:00:52]} 24. Nc3 {[%emt 0:00:18]} Qe1+ {[%emt 0:23:43]} 25. Nd1 {[%emt 0:07:03]} Qb4 {[%emt 0:08:51] Hoping for ...Rac8.} 26. fxg4 {[%emt 0:00:40]} h4 {[%emt 0:00:03]} 27. Rd3 {[%emt 0:05:54] aiming for Qf2.} Re1 {[%emt 0:00:05]} 28. a3 {[%emt 0:00:27]} Qe7 {[%emt 0:00:02]} 29. Rxe1 {[%emt 0:00:40]} Qxe1 {[%emt 0:00:02]} 30. Qf2 {[%emt 0:02:32]} (30. Rh3 $18) 30... Re8 {[%emt 0:01:35]} 31. Qxe1 {[%emt 0:00:35]} Rxe1 {[%emt 0:00:01][%mdl 4096] Endgame KRN-KR} 32. Kc2 {[%emt 0:00:05]} Re4 {[%emt 0:01:49] [#]} ({Black should try} 32... Rg1) 33. Nf2 {[%emt 0:01:05]} ({But not} 33. Nc3 $6 Rxg4 34. Nxd5 f6 $14) (33. Ne3 $1 $16) 33... Rf4 $14 {[%emt 0:00:53]} 34. Rd2 {[%emt 0:00:01]} g5 $1 {[%emt 0:01:17]} 35. Kd3 {[%emt 0:00:19]} f5 $1 {[%emt 0:00:34]} 36. gxf5 {[%emt 0:00:24] Strongly threatening Ke3.} g4 {[%emt 0:00:20]} 37. Ke3 {[%emt 0:00:22]} Rf3+ {[%emt 0:00:01]} 38. Ke2 {[%emt 0:00:04]} Rf4 {[%emt 0:00:24]} 39. Ke3 {[%emt 0:00:04]} Rf3+ {[%emt 0:00:04]} 40. Ke2 {[%emt 0:00:02]} Rf4 {[%emt 0:00:06]} 41. Rd1 {[%emt 0:02:45]} Kg7 {[%emt 0:01:50]} 42. Rh1 {[%emt 0:00:21]} g3 {[%emt 0:00:10]} 43. Ke3 {[%emt 0:00:59][%mdl 8192]} Rxf2 $19 {[%emt 0:00:15]} 44. Rxh4 {[%emt 0:00:01]} Rxb2 {[%emt 0:00:19] KR-KR} 45. Kf4 {[%emt 0:00:08]} (45. Rg4+ {only move.} Kf6 46. Kf4 Rf2+ 47. Ke3) 45... Rb3 $2 {[%emt 0:01:12]} (45... g2 $19 46. Rg4+ Kf7) 46. a4 $11 {[%emt 0:01:19]} ({Much worse is} 46. Rg4+ Kf7 47. a4 (47. Rxg3 $2 Rxg3 48. Kxg3 b5 $19) 47... Rd3 $17) 46... Rd3 {[%emt 0:00:43]} 47. Kg5 $2 {[%emt 0:00:16][%mdl 8192]} (47. Rg4+ $15 Kf7 48. Rg6) 47... Rf3 $19 {[%emt 0:01:33]} 48. Rg4 {[%emt 0:00:40]} b6 {[%emt 0:00:46]} 49. Rh4 {[%emt 0:00:34]} g2 {[%emt 0:00:43]} 50. Rg4 {[%emt 0:00:08]} Rf2 {[%emt 0:00:03]} 51. Rg3 {[%emt 0:00:48]} Kf7 {[%emt 0:00:31] Black mates.} 52. Rg4 {[%emt 0:00:21]} a6 {[%emt 0:00:27][%cal Ba7a6,Ba6b5,Bb5b4,Bb4b3,Bb3b2][%mdl 32]} 53. Rg3 {[%emt 0:00:30]} b5 {[%emt 0:00:06]} 54. axb5 {[%emt 0:00:15]} axb5 {[%emt 0:00:04]} 55. Kh4 {[%emt 0:00:58]} b4 {[%emt 0:00:05]} 56. Kh3 {[%emt 0:00:21]} b3 {[%emt 0:00:10]} 57. Kh2 {[%emt 0:00:02]} b2 {[%emt 0:00:11] Never resign too early!  Weighted Error Value: White=0.54/Black=0.24 (precise)} 0-1

[Event "ESP-chT Honor Division 2022"]
[Site "Linares"]
[Date "2022.09.23"]
[Round "7.20"]
[White "Jones, Gawain C B"]
[Black "Ayats Llobera, Gerard"]
[Result "1-0"]
[ECO "C04"]
[WhiteElo "2623"]
[BlackElo "2451"]
[Annotator "TA"]
[PlyCount "69"]
[EventDate "2022.09.17"]
[EventType "team-tourn"]
[EventCountry "ESP"]
[SourceTitle "playchess.com"]
[Source "ChessBase"]
[SourceQuality "1"]
[TimeControl "5400+30"]

{[%evp 14,69,29,25,32,0,0,-2,1,0,12,0,0,-14,0,0,0,0,0,0,-9,-44,0,0,1,0,0,3,9,12,36,36,35,26,40,0,0,-8,0,0,-8,-13,-14,-100,-100,-96,-100,-100,-100,-90,-97,-127,0,0,487,471,652,585]} 1. e4 {[%emt 0:00:23]} e6 {[%emt 0:00:06]} 2. d4 {[%emt 0:00:09]} d5 {[%emt 0:00:03]} 3. Nd2 {[%emt 0:00:14]} Nc6 {[%emt 0:00:05]} 4. Ngf3 {[%emt 0:00:07]} Nf6 {[%emt 0:00:08]} 5. e5 {[%emt 0:00:06]} Nd7 {[%emt 0:00:02]} 6. c3 {[%emt 0:00:50]} f6 {[%emt 0:00:04]} 7. Bb5 {[%emt 0:00:15]} fxe5 {[%emt 0:00:35]} 8. dxe5 {[%emt 0:03:53]} (8. Nxe5 Ncxe5 9. dxe5 c6 $15) 8... Be7 {[%emt 0:00:04] C04: French Tarrasch: 3...Nc6.} 9. Nd4 {[%emt 0:03:51]} Ndxe5 {[%emt 0:01:00]} 10. f4 {[%emt 0:20:33]} a6 {[%emt 0:01:09] The position is equal.} 11. Qh5+ {[%emt 0:01:17]} Kd7 {[%emt 0:01:18]} (11... Kf8 $2 12. fxe5 Nxd4 13. cxd4 $18) 12. Qxe5 $5 {[%emt 0:05:36][%mdl 4] Exploring less charted territory.} axb5 {[%emt 0:00:16]} 13. Qxe6+ {[%emt 0:00:14]} Ke8 {[%emt 0:00:03]} 14. Qe2 {[%emt 0:00:13] [#]} Nxd4 $146 {[%emt 0:00:06]} ({Predecessor:} 14... Kf7 15. N2f3 Re8 16. O-O Nxd4 17. cxd4 c6 18. Ne5+ Kg8 19. Qd3 Rf8 20. f5 Bd6 {1-0 (71) Murlasits,M (2166)-Lehnen,P (2115) ICCF email 2010}) 15. cxd4 {[%emt 0:00:05]} c6 {[%emt 0:00:17]} 16. O-O $1 {[%emt 0:01:28]} Kf7 {[%emt 0:03:29]} 17. f5 {[%emt 0:10:37]} Rf8 {[%emt 0:03:24]} (17... Bf6 $5 {[%cal Rf6d4]} 18. Qh5+ g6 19. fxg6+ Kg7 $15) 18. g4 {[%emt 0:01:35]} Kg8 {[%emt 0:06:56]} 19. Nf3 {[%emt 0:02:09]} Bd6 {[%emt 0:00:19] Against Bf4} 20. Bg5 {[%emt 0:05:54]} Qc7 {[%emt 0:08:53]} 21. a3 {[%emt 0:00:53]} b4 {[%emt 0:14:18]} 22. axb4 {[%emt 0:08:53]} Rxa1 {[%emt 0:02:16]} 23. Rxa1 {[%emt 0:00:07]} Bxb4 {[%emt 0:01:16]} 24. Ra8 {[%emt 0:00:32]} Bd6 {[%emt 0:14:41]} 25. Bh4 {[%emt 0:05:05]} g6 {[%emt 0:21:42][%cal Bg7g6,Bg6f5,Bf5g4][%mdl 32]} 26. Bg5 {[%emt 0:07:01]} Qf7 {[%emt 0:12:34]} ({But not} 26... gxf5 27. Bh6 Rd8 28. Ng5 $16) 27. Qg2 {[%emt 0:09:11]} Bd7 {[%emt 0:01:46]} 28. Ra7 {[%emt 0:05:33]} (28. Rxf8+ $11 Kxf8 29. f6) 28... gxf5 $17 {[%emt 0:00:51]} 29. Bh6 {[%emt 0:00:52] [#] gxf5+ is the strong threat.} Rb8 $1 {[%emt 0:03:04]} ({Don't play} 29... fxg4 $6 30. Bxf8 Qxf8 31. Ne5 Bxe5 32. dxe5 $11) 30. Ne5 {[%emt 0:06:30]} ({Not} 30. gxf5+ $2 Kh8 31. Ne5 Bxe5 32. dxe5 Rg8 $19) 30... Bxe5 {[%emt 0:00:47]} 31. dxe5 {[%emt 0:00:01]} fxg4 {[%emt 0:00:34]} 32. Qg3 {[%emt 0:00:54][%cal Oe5e6]} Qe6 {[%emt 0:03:29]} (32... Be6 $17 {White must now prevent ...Qg6.} 33. Ra1 Re8) 33. Qf4 $11 {[%emt 0:00:17][%cal Oa7b7] Strongly threatening Rxb7!} d4 $2 {[%emt 0:00:25][%mdl 8192] [#]} (33... Re8 $1 $11) 34. Rxb7 $3 $18 {[%emt 0:00:24][%mdl 512]} Ra8 {[%emt 0:00:50]} (34... Re8 35. Qg5+) 35. Qg5+ {[%emt 0:00:21] Weighted Error Value: White=0.12 (very precise) /Black=0.34} 1-0

[Event "ESP-chT Honor Division 2022"]
[Site "Linares"]
[Date "2022.09.23"]
[Round "7.21"]
[White "Martinez Fernandez, Adrian"]
[Black "Del Rio De Angelis, Salvador G."]
[Result "1-0"]
[ECO "B12"]
[WhiteElo "2338"]
[BlackElo "2456"]
[Annotator "TA"]
[PlyCount "61"]
[EventDate "2022.09.17"]
[EventType "team-tourn"]
[EventCountry "ESP"]
[SourceTitle "playchess.com"]
[Source "ChessBase"]
[SourceQuality "1"]
[TimeControl "5400+30"]

{[%evp 14,61,-14,-31,37,35,48,32,50,0,0,0,0,0,88,110,104,77,83,0,100,100,133,128,117,129,122,124,122,117,105,60,65,60,118,114,122,126,118,117,123,116,153,142,154,136,132,127,166,171]} 1. e4 {[%emt 0:00:02]} c6 {[%emt 0:00:13]} 2. d4 {[%emt 0:00:06]} d5 {[%emt 0:00:08]} 3. e5 {[%emt 0:00:04]} Bf5 {[%emt 0:00:17]} 4. Nc3 {[%emt 0:00:06]} e6 {[%emt 0:01:30]} 5. g4 {[%emt 0:00:06]} Bg6 {[%emt 0:00:18]} 6. Nge2 {[%emt 0:00:05]} c5 {[%emt 0:00:55]} 7. h4 {[%emt 0:00:05]} h5 {[%emt 0:00:18]} 8. Nf4 {[%emt 0:00:05]} Ne7 {[%emt 0:01:17] B12: Caro-Kann: Advance Variation.} ({Black should try} 8... Bh7 $15) 9. Nb5 $1 $14 {[%emt 0:05:11]} (9. gxh5 Bf5 $15) 9... Nec6 $1 {[%emt 0:05:50]} 10. Nxg6 {[%emt 0:18:42]} fxg6 {[%emt 0:00:07] White is slightly better.} 11. Bd3 {[%emt 0:00:06]} (11. Qd3 $14 Kd7 12. dxc5 (12. Qxg6 cxd4 13. Bf4 a6 $11)) 11... cxd4 $11 {[%emt 0:05:55]} 12. Bxg6+ {[%emt 0:04:41]} Kd7 {[%emt 0:00:07] And now ...Qa5+ would win.} 13. Nxd4 {[%emt 0:00:15]} Nxe5 {[%emt 0:02:05] [#]} (13... Nxd4 $11 14. Qxd4 Nc6) 14. Qe2 $1 $36 {[%emt 0:06:53][%mdl 2048] Keeping Black busy.} Qf6 {[%emt 0:10:09] [#]} 15. Be8+ $146 {[%emt 0:11:00][%mdl 512]} ({Predecessor:} 15. Bg5 Qxg6 16. Qxe5 Bd6 17. Qe2 Nc6 18. O-O-O Rac8 19. Rhe1 Nxd4 20. Rxd4 Rxc2+ 21. Qxc2 {0-1 (33) Iveljic,I (2186)-Kanjuh,V (2073) Dvorovi 2005}) 15... Kxe8 {[%emt 0:00:40]} 16. Bg5 {[%emt 0:00:04]} (16. g5 $1 $16 {[%cal Rg5f6]} Qf7 17. Qxe5) 16... Qf7 {[%emt 0:17:14]} (16... Bb4+ $2 17. c3 Qg6 18. Qxe5 $18 (18. cxb4 Nbc6 $11)) (16... Nbc6 $1 $11 {remains equal.} 17. Bxf6 Nxd4 18. Bxe5 Nxe2) 17. Qxe5 {[%emt 0:00:10] Really sharp!} Nc6 {[%emt 0:00:35]} 18. Qxe6+ {[%emt 0:17:08]} Qxe6+ {[%emt 0:06:18]} 19. Nxe6 {[%emt 0:00:05] Strongly threatening Nc7+.} Kd7 {[%emt 0:01:50] Against Nc7} 20. Nxf8+ {[%emt 0:00:12]} Raxf8 {[%emt 0:00:07]} 21. O-O-O {[%emt 0:05:07]} Kd6 {[%emt 0:04:41]} 22. Rd2 {[%emt 0:03:49]} hxg4 {[%emt 0:20:44]} 23. Rg1 {[%emt 0:00:06]} Rf5 {[%emt 0:04:00]} (23... Ne5 $14) 24. Rxg4 {[%emt 0:00:26]} Rhf8 {[%emt 0:01:01]} 25. Be3 {[%emt 0:03:19]} R8f7 {[%emt 0:00:28]} 26. Rg6+ {[%emt 0:05:19]} Kc7 {[%emt 0:01:54]} 27. Rg1 {[%emt 0:02:17] White is more active.} b5 {[%emt 0:01:53]} 28. c3 {[%emt 0:02:34]} a5 {[%emt 0:00:33]} 29. Rg6 {[%emt 0:02:09]} Ne5 {[%emt 0:02:08] [#]} 30. Ra6 {[%emt 0:02:40]} Nc4 {[%emt 0:00:07] [#]} 31. Rxd5 $3 {[%emt 0:03:23][%mdl 512] Weighted Error Value: White=0.12 (very precise) /Black=0.27 (precise)} 1-0